fUSD/lending_fUSD_20240204
["ID","MTS","AMOUNT","RATE_DAILY","PERIOD"]
[313247860,1707011432201,-667.62775517,0.00024898,2]
[313247861,1707011432211,-14607.12,0.00024999,2]
[313247862,1707011432221,-936.86679501,0.00025,2]
[313247863,1707011432230,-1906.40505966,0.00025,2]
[313247864,1707011432239,-1254.00428759,0.00025,2]
[313247865,1707011432248,-167.98637528,0.00025,2]
[313247866,1707011432258,-1589.3927025,0.00025,2]
[313247867,1707011432267,-202.77097058,0.00025,2]
[313247868,1707011432276,-304.58743218,0.00025,2]
[313247869,1707011432285,-499.99,0.00025,2]
[313247870,1707011432294,-171.68243609,0.00026289,3]
[313247871,1707011432304,-171.95287688,0.00026683,2]
[313247872,1707011432314,-460.5389,0.00027397,2]
[313247874,1707011432323,-155.35,0.00027716,2]
[313247876,1707011432332,-691.57738315,0.00028,2]
[313247877,1707011432342,-947.3087,0.00028061,2]
[313247879,1707011432351,-536.10394499,0.00028141,2]
[313247881,1707011432361,-278.06874462,0.00028141,2]
[313247883,1707011432370,-171.95287688,0.00028624,2]
[313247885,1707011432379,-166.36,0.00028858,2]
[313247886,1707011432388,-1596.14,0.000289,3]
[313247888,1707011432396,-6870.64976652,0.00028987,2]
[313247889,1707011432405,-813.8141,0.00029159,2]
[313247891,1707011432415,-1539.3707,0.00029159,2]
[313247893,1707011432424,-7985.87,0.00029259,2]
[313247895,1707011432432,-1000.0,0.00029325,2]
[313247897,1707011432441,-250.0,0.00029336,2]
[313247899,1707011432450,-150.0,0.00029496,2]
[313247900,1707011432459,-366.04380636,0.000295,2]
[313247902,1707011432468,-1168.83,0.000295,2]
[313247904,1707011432478,-211.8,0.00029529,2]
[313247906,1707011432487,-166.87,0.00029566,2]
[313247908,1707011432496,-166.36,0.00029609,2]
[313247910,1707011432506,-291.68,0.00029629,2]
[313247912,1707011432518,-250.0,0.00029731,2]
[313247914,1707011432527,-153.0,0.00029731,2]
[313247916,1707011432536,-153.0,0.00029731,2]
[313247918,1707011432545,-153.474,0.00029731,2]
[313247920,1707011432554,-256.0,0.00029731,2]
[313247921,1707011432564,-153.503,0.00029731,2]
[313247923,1707011432573,-224.221,0.00029731,2]
[313247924,1707011432780,-176.13214682,0.000298,2]
[313247925,1707011432790,-694.54802203,0.0003,2]
[313247926,1707011432803,-3000.0,0.0003,2]
[313247927,1707011432813,-1813.8010918,0.0003,4]
[313247928,1707011432822,-909.32407402,0.0003,4]
[313247929,1707011432831,-155.0,0.0003,4]
[313247930,1707011432840,-2650.39642541,0.0003,4]
[313247931,1707011432850,-400.73567726,0.0003,4]
[313247932,1707011432859,-9674.94675906,0.0003,2]
[313247933,1707011432869,-8878.01598316,0.0003,4]
[313247934,1707011432878,-155.0,0.0003,2]
[313247935,1707011432887,-584.86692262,0.0003,2]
[313247936,1707011432897,-817.74425652,0.0003,4]
[313247937,1707011432906,-538.74,0.00030159,2]
[313247938,1707011432915,-166.36,0.00030359,2]
[313247939,1707011432924,-171.95287688,0.00030565,2]
[313247940,1707011432933,-994.2569081,0.00030949,5]
[313247941,1707011432942,-257.45432196,0.00031,4]
[313247942,1707011432951,-155.35,0.000313,2]
[313247943,1707011432961,-1010.71430403,0.00031403,2]
[313247944,1707011432970,-2033.07616519,0.00031673,28]
[313247945,1707011432979,-359.35200672,0.00031893,2]
[313247946,1707011432988,-13132.26818572,0.00032,4]
[313247947,1707011432997,-150.0,0.00032235,2]
[313247948,1707011433006,-180.0,0.00032264,2]
[313247949,1707011433015,-171.95287688,0.00032507,2]
[313247950,1707011433024,-150.0,0.00032731,2]
[313247951,1707011433034,-150.0,0.00032852,2]
[313247952,1707011433045,-639.68,0.00032877,2]
[313247953,1707011433055,-500.0,0.00032877,2]
[313247954,1707011433065,-1000.0,0.0003299,2]
[313247955,1707011433073,-150.0,0.00033469,2]
[313247956,1707011433082,-152.3,0.000335,2]
[313247957,1707011433092,-152.3,0.000335,2]
[313247958,1707011433101,-152.3,0.000335,2]
[313247959,1707011433110,-152.3,0.000335,2]
[313247960,1707011433120,-152.3,0.000335,2]
[313247961,1707011433129,-152.3,0.000335,2]
[313247962,1707011433139,-152.3,0.000335,2]
[313247963,1707011433149,-152.3,0.000335,2]
[313247964,1707011433159,-152.3,0.000335,2]
[313247965,1707011433168,-152.3,0.000335,2]
[313247966,1707011433177,-152.3,0.000335,2]
[313247967,1707011433186,-152.3,0.000335,2]
[313247968,1707011433195,-152.3,0.000335,2]
[313247969,1707011433205,-207.89213434,0.00033548,2]
[313247970,1707011433214,-500.0,0.00033548,2]
[313247971,1707011433224,-191179.0,0.0003386,2]
[313247972,1707011433233,-765.94522118,0.00034,4]
[313247973,1707011433243,-150.0,0.00034086,2]
[313247974,1707011433252,-502.63026459,0.00034096,2]
[313247975,1707011433260,-337.7402,0.00034338,2]
[313247976,1707011433270,-1024.6412,0.00034348,2]
[313247977,1707011433279,-963.68672839,0.00034348,6]
[313247978,1707011433288,-116073.11753,0.00034438,7]
[313247979,1707011433297,-282.32868402,0.00034438,2]
[313247980,1707011433308,-100000.0,0.00034448,2]
[313247981,1707011433316,-205.593,0.00034448,2]
[313247982,1707011433325,-153709.27172875,0.00034448,2]
[313247983,1707011433338,-1498.94636376,0.00034448,2]
[313247984,1707011433349,-519.80629185,0.00034448,2]
[313247985,1707011433360,-6004.13120219,0.00034448,2]
[313247986,1707011433373,-472.96270286,0.00034448,2]
[313247987,1707011433383,-391.9015,0.00034448,2]
[313247988,1707011433396,-486.24395781,0.00034448,2]
[313247989,1707011433407,-1216.44,0.00034448,2]
[313247990,1707011433423,-1263.15682622,0.00034448,2]
[313247991,1707011433435,-2306.58114959,0.00034448,2]
[313247992,1707011433455,-13457.47345352,0.00034448,2]
[313247993,1707011433470,-818.10924833,0.00034448,2]
[313247994,1707011433629,-62854.97557512,0.00034448,2]
[313247995,1707011433639,-5378.6903,0.00034448,2]
[313247996,1707011433648,-152.02088059,0.00034448,6]
[313247997,1707011433657,-171.95287688,0.00034448,2]
[313247998,1707011433667,-171.7399362,0.00034448,2]
[313247999,1707011433676,-529.7127617,0.00034448,2]
[313248000,1707011433686,-178.40718144,0.00034448,2]
[313248001,1707011433695,-213.06565793,0.00034448,2]
[313248002,1707011433704,-272.62588127,0.00034448,2]
[313248003,1707011433713,-500.0,0.00034537,15]
[313248004,1707011433723,-500.0,0.00034537,15]
[313248005,1707011433732,-436.03063295,0.00034537,15]
[313248006,1707011433741,-6827.83044297,0.00034537,7]
[313248007,1707011433752,-6827.83044297,0.00034538,7]
[313248008,1707011433761,-129728.778416,0.00034538,7]
[313248009,1707011433771,-155.17668816,0.00034543,2]
[313248010,1707011433780,-210.96616782,0.00034546,4]
[313248011,1707011433790,-172.74401866,0.00034546,4]
[313248012,1707011433799,-184.90967762,0.00034546,4]
[313248013,1707011433812,-155.38040546,0.00034546,4]
[313248014,1707011433822,-172.0728238,0.00034546,4]
[313248015,1707011433831,-476.10596449,0.00034546,4]
[313248016,1707011433841,-461.73984486,0.00034546,4]
[313248017,1707011433850,-290.14887709,0.00034546,4]
[313248018,1707011433859,-155.43130664,0.00034546,4]
[313248019,1707011433868,-155.42883071,0.00034546,4]
[313248020,1707011433878,-429.55853484,0.00034546,2]
[313248021,1707011433887,-680.00926444,0.00034546,4]
[313248022,1707011433897,-192.1609168,0.00034546,4]
[313248023,1707011433906,-904.10183854,0.00034546,2]
[313248024,1707011433916,-476.44876672,0.00034546,4]
[313248025,1707011433925,-4274.78764875,0.00034546,2]
[313248026,1707011433934,-769.9880888,0.00034546,2]
[313248027,1707011433944,-1200.82832136,0.00034546,4]
[313248028,1707011433953,-416.37869904,0.00034546,2]
[313248029,1707011433963,-389.45459358,0.00034547,4]
[313248030,1707011433972,-314067.66042883,0.00034548,2]
[313248031,1707011433984,-410.6509532,0.00034548,2]
[313248032,1707011433995,-1964.1773477,0.00034548,2]
[313248033,1707011434010,-499.16534257,0.00034548,2]
[313248034,1707011434022,-747449.32711712,0.00034548,2]
[313248035,1707011434032,-14053.82191411,0.00034548,4]
[313248036,1707011434044,-517.34281583,0.00034549,4]
[313248037,1707011434055,-150.0,0.00034703,2]
[313248038,1707011434065,-155.35,0.00034885,2]
[313248039,1707011434075,-256.5130871,0.00034888,7]
[313248040,1707011434084,-156.76837779,0.00034888,4]
[313248041,1707011434093,-1380.6957198,0.00034898,4]
[313248042,1707011434102,-382.15634505,0.00034898,4]
[313248043,1707011434111,-500.0,0.000349,2]
[313248044,1707011434121,-8999.04607901,0.000349,4]
[313248045,1707011434131,-1713.25997975,0.000349,2]
[313248046,1707011434140,-221.77404607,0.00035,4]
[313248047,1707011434149,-15814.2029838,0.00035,7]
[313248048,1707011434158,-518.48110459,0.00035,4]
[313248049,1707011434167,-155.0,0.00035,2]
[313248050,1707011434177,-488.33177647,0.00035,14]
[313248051,1707011434185,-155.0,0.00035,2]
[313248052,1707011434195,-186.62386355,0.00035,4]
[313248053,1707011434204,-450.12144164,0.00035,4]
[313248054,1707011434213,-529.7127617,0.00035311,2]
[313248055,1707011434222,-150.0,0.0003532,2]
[313248056,1707011434231,-10000.0,0.00035616,2]
[313248057,1707011434240,-150.0,0.00035731,2]
[313248058,1707011434250,-152.3,0.000358,3]
[313248059,1707011434260,-152.3,0.000358,3]
[313248060,1707011434269,-152.3,0.000358,3]
[313248061,1707011434279,-152.3,0.000358,3]
[313248062,1707011434288,-152.3,0.000358,3]
[313248063,1707011434298,-152.3,0.000358,3]
[313248064,1707011434309,-152.3,0.000358,3]
[313248065,1707011434318,-152.3,0.000358,3]
[313248066,1707011434327,-152.3,0.000358,3]
[313248067,1707011434336,-152.3,0.000358,3]
[313248068,1707011434345,-152.3,0.000358,3]
[313248069,1707011434354,-152.3,0.000358,3]
[313248070,1707011434363,-152.3,0.000358,3]
[313248071,1707011434372,-1713.25997961,0.00035927,2]
[313248072,1707011434381,-150.0,0.00035936,2]
[313248073,1707011434390,-299.32441982,0.00036,4]
[313248074,1707011434399,-157.89290343,0.000361,4]
[313248075,1707011434408,-963.68672833,0.00036127,7]
[313248076,1707011434418,-529.7127617,0.00036174,2]
[313248077,1707011434427,-50000.0,0.000365,5]
[313248078,1707011434436,-150.0,0.00036553,2]
[313248079,1707011434448,-1000.0,0.00036656,2]
[313248080,1707011434458,-10000.0,0.00036934,2]
[313248081,1707011434469,-221.0,0.00036996,2]
[313248082,1707011434478,-311.32327923,0.00037,4]
[313248083,1707011434488,-155.55334422,0.00037,2]
[313248084,1707011434497,-529.7127617,0.00037037,2]
[313248085,1707011434508,-10414.35442041,0.0003715,2]
[313248086,1707011434517,-185.04380696,0.0003715,2]
[313248087,1707011434526,-150.0,0.0003717,2]
[313248088,1707011434535,-200.17506233,0.00037333,5]
[313248089,1707011434545,-150.0,0.00037364,2]
[313248090,1707011434555,-181.29930532,0.00037451,7]
[313248091,1707011434564,-6094.61935986,0.00037502,4]
[313248092,1707011434573,-1713.25997961,0.00037506,2]
[313248093,1707011434583,-155.35296576,0.00037518,4]
[313248094,1707011434592,-359.29738872,0.00037518,4]
[313248095,1707011434601,-155.2330531,0.00037519,4]
[313248096,1707011434610,-1047.33043705,0.00037519,2]
[313248097,1707011434619,-12507.35947417,0.00037519,4]
[313248098,1707011434628,-158.03709341,0.00037519,4]
[313248099,1707011434638,-204.31732191,0.00037519,4]
[313248100,1707011434647,-293.99899313,0.00037519,4]
[313248101,1707011434657,-235.36223061,0.00037519,4]
[313248102,1707011434667,-5863.36973768,0.00037521,4]
[313248103,1707011434676,-155.0,0.00037521,4]
[313248104,1707011434686,-200.0,0.00037521,2]
[313248105,1707011434695,-1970.77972657,0.00037521,2]
[313248106,1707011434704,-3497.41835432,0.00037521,4]
[313248107,1707011434714,-544.62906183,0.00037521,4]
[313248108,1707011434723,-4050.67071956,0.00037521,15]
[313248109,1707011434732,-1583.37724857,0.00037521,5]
[313248110,1707011434741,-686.62489687,0.00037521,4]
[313248111,1707011434751,-5637.40464828,0.00037521,2]
[313248112,1707011434760,-155.0,0.00037521,4]
[313248113,1707011434769,-3000.0,0.00037521,2]
[313248114,1707011434778,-500.0,0.00037521,2]
[313248115,1707011434787,-152.90939142,0.0003762,2]
[313248116,1707011434797,-151.10781304,0.0003762,2]
[313248117,1707011434807,-445.88817028,0.000377,3]
[313248118,1707011434816,-150.0,0.00037787,2]
[313248119,1707011434826,-5000.0,0.000378,3]
[313248120,1707011434835,-1824.52,0.00037835,5]
[313248121,1707011434844,-265.21514483,0.00037899,4]
[313248122,1707011434854,-365.20328056,0.000379,2]
[313248123,1707011434862,-43582.26978936,0.000379,2]
[313248124,1707011434872,-6904.54523602,0.000379,3]
[313248125,1707011434888,-688.9343858,0.000379,3]
[313248126,1707011434899,-3079.21785668,0.000379,3]
[313248127,1707011434911,-538.88,0.000379,3]
[313248128,1707011434923,-1174.37054762,0.000379,3]
[313248129,1707011434934,-7810.58269035,0.000379,3]
[313248130,1707011434945,-639.91916815,0.000379,3]
[313248134,1707011438090,-263.75644796,0.00028987,2]
[313248135,1707011438203,-579.4974,0.00028987,2]
[313248136,1707011438369,-6027.39591856,0.00028987,2]
[313248138,1707011438378,-2378.70408144,0.00034548,3]
[313248143,1707011440576,-281.58631847,0.00034548,3]
[313248144,1707011440590,-424.5191321,0.00034548,3]
[313248145,1707011440634,-785.02917946,0.00034548,3]
[313248146,1707011440646,-4499.13545057,0.00034548,3]
[313248147,1707011440657,-901.75585382,0.00034548,3]
[313248148,1707011440692,-342.6806139,0.00034548,3]
[313248149,1707011440753,-353.89329981,0.00034548,3]
[313248150,1707011440824,-14.84337579,0.00034548,3]
[313248151,1707011440836,-991.93470308,0.00034548,3]
[313248152,1707011441488,-1488.91443361,0.00034548,3]
[313248153,1707011441500,-568.52842727,0.00034548,3]
[313248242,1707011443196,-4927.89073133,0.00034548,3]
[313248253,1707011443285,-1853.0086098,0.00034548,3]
[313248257,1707011443313,-3267.72426657,0.00034548,3]
[313248259,1707011443322,-26.94056378,0.00037521,2]
[313248261,1707011443334,-3973.05943622,0.00037521,2]
[313248263,1707011443343,-27192.549073,0.000379,3]
[313248267,1707011443371,-960.94494096,0.000379,3]
[313248357,1707011446111,-337.58499113,0.0003,4]
[313248358,1707011446121,-807.94362417,0.00037898,4]
[313248359,1707011446130,-765.94522118,0.00037898,4]
[313248360,1707011446139,-696.73272772,0.00037899,4]
[313248361,1707011446149,-8999.04607901,0.00037899,4]
[313248362,1707011446158,-13132.26818572,0.00037899,4]
[313248363,1707011446167,-91430.2884195,0.000379,3]
[313248364,1707011446180,-7316.47742972,0.000379,3]
[313248365,1707011446233,-825.12309966,0.000379,3]
[313248366,1707011446245,-390.56103998,0.000379,3]
[313248367,1707011446256,-709.95273994,0.000379,3]
[313248368,1707011446304,-18731.82158314,0.000379,3]
[313248369,1707011446315,-3275.40528172,0.000379,3]
[313248370,1707011446326,-2248.46080941,0.000379,3]
[313248371,1707011446338,-2542.43907,0.000379,3]
[313248372,1707011446349,-5563.455488,0.000379,3]
[313248373,1707011446361,-547.62,0.000379,3]
[313248380,1707011581228,150.0,0.00022,3]
[313248381,1707011581250,150.0,0.00022,3]
[313248382,1707011581274,150.0,0.00022,3]
[313248383,1707011581297,100.0,0.00022,3]
[313248384,1707011993979,150.0,0.00022463,2]
[313248385,1707011994003,5.35,0.00022463,2]
[313248386,1707012417978,155.69,0.00021277,2]
[313248387,1707012539186,150.0,0.00021266,2]
[313248388,1707012539206,223.26580512,0.00021266,2]
[313248389,1707012539226,4162.87231843,0.00021266,2]
[313248390,1707012557555,1842.91805179,0.00021266,2]
[313248393,1707012602100,150.56893507,0.00022,2]
[313248424,1707012632218,-267.26525593,0.00022669,2]
[313248427,1707012632228,-155.40880575,0.00022768,2]
[313248429,1707012632238,-162.82230453,0.00022795,2]
[313248431,1707012632247,-158.03709341,0.00022895,2]
[313248432,1707012632259,-96.89236915,0.00022895,2]
[313248433,1707012632271,-138.46986146,0.00022895,2]
[313248434,1707012632281,-155.2330531,0.00022895,2]
[313248435,1707012632290,-127.30871222,0.00022895,2]
[313248436,1707012632301,-166.69028091,0.00022895,2]
[313248437,1707012632310,-1047.33043705,0.00022895,2]
[313248438,1707012632319,-78.69617161,0.00022895,2]
[313248439,1707012632331,-125.6211503,0.00022895,2]
[313248440,1707012632340,-1000.0,0.00022896,2]
[313248441,1707012632349,-7189.28304413,0.00022897,2]
[313248442,1707012632361,-851.1961757,0.00022897,2]
[313248443,1707012632372,-500.63970618,0.00022897,2]
[313248444,1707012632404,-2107.65555,0.00022897,2]
[313248445,1707012632416,-350.0,0.00022897,2]
[313248446,1707012632427,-1336.68287156,0.00022897,2]
[313248447,1707012632438,-644.81477819,0.00022897,2]
[313248448,1707012632449,-866.30438943,0.00022897,2]
[313248452,1707012632580,-450.25,0.00022897,2]
[313248455,1707012632596,-3540.59504822,0.00022897,2]
[313248457,1707012632608,-493.337452,0.00022897,2]
[313248458,1707012632619,-24820.45099556,0.00022897,2]
[313248459,1707012632628,-155.35296576,0.00022898,2]
[313248460,1707012632637,-359.29738872,0.00022898,2]
[313248461,1707012632647,-17889.1627,0.00022898,2]
[313248462,1707012632656,-460.5469,0.00022898,2]
[313248463,1707012632665,-282.02904996,0.000229,2]
[313248464,1707012632675,-1615.8043523,0.000229,2]
[313248465,1707012632686,-55915.06262814,0.000229,2]
[313248466,1707012632697,-390.72,0.000229,2]
[313248467,1707012632707,-422.84951053,0.000229,2]
[313248470,1707012632723,-1124.72457423,0.000229,2]
[313248472,1707012632734,-5532.23318484,0.000229,2]
[313248474,1707012632743,-152.02088057,0.000229,2]
[313248476,1707012632752,-2140.75,0.000229,2]
[313248478,1707012632761,-162.82230453,0.000229,2]
[313248480,1707012632770,-1313.33,0.000229,2]
[313248482,1707012632779,-2140.76,0.000229,2]
[313248486,1707012632924,-487.35700102,0.000229,6]
[313248487,1707012632939,-1000.8,0.000229,2]
[313248488,1707012632949,-181.75058752,0.000229,2]
[313248489,1707012632958,-126.69564796,0.000229,2]
[313248490,1707012632969,-1679.63086874,0.000229,2]
[313248491,1707012632979,-499.99,0.000229,2]
[313248492,1707012632988,-82.24259148,0.000229,2]
[313248493,1707012633000,-72.74740852,0.000229,2]
[313248494,1707012633009,-906.63259148,0.00022998,2]
[313248507,1707012638230,-564.26962784,0.00022998,2]
[313248509,1707012638241,-935.69394155,0.00022998,2]
[313248511,1707012638253,-647.37026463,0.00022998,2]
[313248514,1707012638269,-419.83,0.00022998,2]
[313248516,1707012638281,-521.4827576,0.00022998,2]
[313248521,1707012638375,-1006.30844194,0.00022998,2]
[313248522,1707012638387,-5189.94117156,0.00022998,2]
[313248523,1707012638430,-1887.6263142,0.00022998,2]
[313248524,1707012638485,-2095.768675,0.00022998,2]
[313248525,1707012638541,-10020.08818499,0.00022998,2]
[313248526,1707012638550,-17956.63385441,0.00022998,2]
[313248527,1707012638561,-919.02233845,0.00022998,2]
[313248533,1707012640710,-499.50753691,0.00022999,2]
[313248534,1707012640719,-390.41,0.00023,2]
[313248535,1707012640728,-1708.20203574,0.00023,3]
[313248536,1707012641533,-478.98038613,0.00023,3]
[313248537,1707012641544,-860.735,0.00023,3]
[313248538,1707012641587,-3025.62317298,0.00023,3]
[313248539,1707012641598,-437.95099589,0.00023,3]
[313248545,1707012643174,-20475.21617985,0.00023,3]
[313248546,1707012643186,-5683.61112122,0.00023,3]
[313248547,1707012643346,-2145.27600764,0.00023,3]
[313248548,1707012643387,-2290.06775574,0.00023,3]
[313248549,1707012643404,-3140.48154989,0.00023,3]
[313248561,1707012646405,-529.7127617,0.000229,2]
[313248562,1707012646414,-1655.39123402,0.00023,3]
[313248563,1707012646423,-2273.5734128,0.00023,2]
[313248564,1707012646451,-695.69933514,0.00023,2]
[313248565,1707012646462,-2016.05460537,0.00023,2]
[313248566,1707012646503,-4276.39484036,0.00023,2]
[313248567,1707012646557,-468.24653829,0.00023,2]
[313248570,1707012646572,-9410.46485975,0.00023,2]
[313248673,1707012648073,4534.36965629,0.00021989,2]
[313248674,1707012662790,152.98510289,0.00022,2]
[313248675,1707012706535,353.7,0.00022,2]
[313248676,1707012856915,155.69,0.00022334,2]
[313248677,1707013310290,188.65332762,0.00022481,2]
[313248678,1707013311238,157.98,0.00021099,2]
[313248679,1707013386162,550.0,0.00022,3]
[313248680,1707013431308,150.0,0.00022466,2]
[313248681,1707013641305,250.0,0.00022388,2]
[313248686,1707013772405,1000.0,0.00022249,2]
[313248687,1707013789404,911.99,0.00022249,2]
[313248688,1707013812892,151.3433714,0.00022,2]
[313248693,1707013831342,-1045.412009,0.00022508,2]
[313248694,1707013831351,-300.0,0.00022509,2]
[313248696,1707013831361,-3920.67273241,0.00022509,2]
[313248698,1707013831373,-20510.03973677,0.00022509,2]
[313248699,1707013831382,-11130.7072902,0.0002251,2]
[313248700,1707013831391,-45348.0,0.00022541,2]
[313248701,1707013831400,-507.78698977,0.00022561,2]
[313248702,1707013831409,-1138.45689103,0.00022616,2]
[313248703,1707013831418,-163.37,0.00022658,2]
[313248704,1707013831428,-176.28,0.00022678,2]
[313248705,1707013831438,-1380.6957198,0.00022768,2]
[313248706,1707013831447,-10414.35442041,0.0002277,2]
[313248707,1707013831457,-165.82600531,0.00022795,2]
[313248708,1707013831465,-151.64,0.00022895,2]
[313248709,1707013831475,-924.36,0.00022895,2]
[313248710,1707013831485,-1799.5374,0.00022899,2]
[313248711,1707013831494,-1000.0,0.00022899,2]
[313248712,1707013831505,-390.0292,0.00022899,2]
[313248713,1707013831514,-815.78047243,0.00022899,2]
[313248714,1707013831524,-311.48131247,0.00022899,2]
[313248715,1707013831541,-218.23144923,0.00022899,2]
[313248716,1707013831549,-165.82600531,0.000229,2]
[313248717,1707013831559,-152.02088057,0.000229,2]
[313248718,1707013831569,-294.08537213,0.000229,6]
[313248719,1707013831583,-95.80022867,0.000229,6]
[313248720,1707013831593,-287.50535597,0.000229,2]
[313248721,1707013831603,-231.17399036,0.000229,2]
[313248729,1707013831740,-84.9936767,0.000229,2]
[313248731,1707013831749,-184.23272446,0.00022989,2]
[313248733,1707013831759,-184.23272446,0.0002299,2]
[313248735,1707013831767,-156.98901622,0.00022998,2]
[313248737,1707013831779,-17.0394019,0.00022998,2]
[313248739,1707013831789,-528.33394351,0.00022999,2]
[313248741,1707013831799,-785.63,0.00022999,2]
[313248744,1707013831809,-11234.82,0.00022999,2]
[313248745,1707013831819,-835.16,0.00022999,2]
[313248748,1707013831828,-258.97807676,0.00022999,2]
[313248750,1707013831839,-4045.00770755,0.00022999,2]
[313248751,1707013831848,-468564.43612083,0.00022999,2]
[313248754,1707013831859,-6429.73131915,0.00022999,2]
[313248756,1707013831870,-56627.6674656,0.00022999,2]
[313248758,1707013831882,-817.67329241,0.00022999,2]
[313248760,1707013831893,-654.59890069,0.00022999,2]
[313248763,1707013831909,-533.54363831,0.00022999,2]
[313248765,1707013831921,-311.06238185,0.00022999,2]
[313248768,1707013831934,-1015.32577911,0.00022999,2]
[313248770,1707013831946,-2271.73824207,0.00022999,2]
[313248772,1707013831958,-1768.42882103,0.00022999,2]
[313248774,1707013831969,-318.4195,0.00022999,2]
[313248796,1707013837392,-968.587,0.00022999,2]
[313248797,1707013837404,-271.708502,0.00022999,2]
[313248798,1707013837449,-19894.76807853,0.00022999,2]
[313248799,1707013837460,-5097.31938343,0.00022999,2]
[313248800,1707013837472,-4526.25296736,0.00022999,2]
[313248801,1707013837484,-9653.42588603,0.00022999,2]
[313248802,1707013837495,-734.70866164,0.00022999,2]
[313248803,1707013837607,-468.50164004,0.00022999,2]
[313248804,1707013837618,-1811.90215072,0.00022999,2]
[313248805,1707013837663,-14445.84387817,0.00022999,2]
[313248806,1707013837721,-39462.98763074,0.00022999,2]
[313248807,1707013837734,-137708.65403811,0.00022999,2]
[313248808,1707013837744,-500.0,0.00022999,2]
[313248809,1707013837753,-201.22760146,0.00022999,2]
[313248810,1707013837763,-390.17842557,0.00022999,2]
[313248811,1707013837773,-222.92919009,0.00022999,2]
[313248812,1707013837783,-5795.36303301,0.00022999,2]
[313248822,1707013839922,-522.56356493,0.00022999,2]
[313248823,1707013840133,-1089.66806522,0.00022999,2]
[313248824,1707013840763,-4292.4,0.00022999,2]
[313248825,1707013840778,-301.41533684,0.00022999,2]
[313248826,1707013840787,-224.93067401,0.00023,3]
[313248827,1707013840817,-4082.22184273,0.00023,3]
[313248879,1707013842554,-533.0,0.00023,3]
[313248880,1707013842711,-1777.89108183,0.00023,3]
[313248888,1707013845576,-189.84040887,0.000229,2]
[313248889,1707013845586,-1048.86463633,0.00022998,2]
[313248890,1707013845595,-14332.72412099,0.00023,3]
[313248891,1707013845604,-5279.63502375,0.00023,2]
[313248892,1707013908121,353.7,0.00022,2]
[313248893,1707014108393,250.0,0.00022276,2]
[313248894,1707014119157,2510.64407049,0.0002,2]
[313248895,1707014135145,2510.64407049,0.0002,2]
[313248896,1707014150969,153.62,0.00022396,2]
[313248897,1707014155150,2510.64407049,0.0002,2]
[313248898,1707014173192,2510.64407049,0.0002,2]
[313248899,1707014195146,2510.64407049,0.0002,2]
[313248905,1707014211155,2510.64407049,0.0002,2]
[313248906,1707014224802,200.0,0.00022087,2]
[313248907,1707014227146,2510.64407049,0.0002,2]
[313248913,1707014249254,2510.64407049,0.0002,2]
[313248914,1707014269160,2510.64407049,0.0002,2]
[313248915,1707014273113,176.28,0.00022087,2]
[313248916,1707014282957,158.12,0.0002017,2]
[313248917,1707014289159,2510.64407049,0.0002,2]
[313248918,1707014307276,2510.64407049,0.0002,2]
[313248919,1707014327164,2510.64407049,0.0002,2]
[313248920,1707014349161,2510.64407049,0.0002,2]
[313248921,1707014367174,2510.64407049,0.0002,2]
[313248922,1707014380720,155.5,0.00022,2]
[313248923,1707014389184,2510.64407049,0.0002,2]
[313248924,1707014395255,2000.0,0.00022177,2]
[313248925,1707014410975,156.39,0.00022343,2]
[313248926,1707014411153,156.39,0.00022411,2]
[313248927,1707014411184,2510.64407049,0.0002,2]
[313248928,1707014411364,156.39,0.0002248,2]
[313248929,1707014431181,2510.64407049,0.0002,2]
[313248930,1707014449189,2510.64407049,0.0002,2]